bitfinex/quotes_ETHUSD_20260207
["timestamp","ask_amount","ask_price","bid_price","bid_amount"]
[1770440457160,4.78529007,2089.8,2088.9,1.49507259]
[1770440457736,4.78529007,2089.8,2088.9,2.69182019]
[1770440457938,0.002,2089.1,2089.0,0.81045527]
[1770440458158,6.00998185,2089.8,2089.0,0.81045527]
[1770440458365,1.19826269,2089.9,2089.1,1.49507259]
[1770440458559,1.19617224,2090.0,2089.1,1.49507259]
[1770440459655,1.19617224,2090.0,2089.0,0.81045527]
[1770440459957,1.19617224,2090.0,2089.0,3.50226598]
[1770440459958,0.05026328,2090.0,2089.0,3.50226598]
[1770440460147,2.62641604,2090.2,2089.2,1.49507259]
[1770440461065,1.19805779,2090.2,2089.2,1.49507259]
[1770440461765,0.002,2090.2,2089.2,1.49507259]
[1770440462141,0.002,2090.2,2089.4,1.49507259]
[1770440462341,0.002,2090.2,2089.6,1.49507259]
[1770440462956,0.002,2090.4,2089.6,1.49507259]
[1770440464638,0.002,2090.4,2089.7,1.19634397]
[1770440464845,0.002,2090.4,2089.8,1.49507259]
[1770440466780,0.002,2090.4,2090.0,1.48550074]
[1770440466995,0.002,2090.4,2090.1,0.26817302]
[1770440467276,1.51933534,2091.2,2090.2,1.48550074]
[1770440467954,0.32382351,2091.2,2090.2,1.48550074]
[1770440468149,1.51931636,2091.2,2090.2,1.48550074]
[1770440468469,0.32382351,2091.2,2090.2,1.48550074]
[1770440468842,0.32382351,2091.2,2090.3,1.19600057]
[1770440469173,0.32382351,2091.2,2090.5,1.39904035]
[1770440469466,0.32382351,2091.2,2090.4,0.74655036]
[1770440469467,1.51931607,2091.2,2090.4,0.74655036]
[1770440469665,0.32382351,2091.2,2090.4,0.74655036]
[1770440469870,0.32382351,2091.2,2090.4,2.14559071]
[1770440471066,0.002,2091.0,2090.6,1.39904035]
[1770440471271,0.002,2091.0,2090.7,1.658533]
[1770440471446,0.002,2091.0,2090.7,0.25949265]
[1770440471767,0.002,2091.0,2090.6,1.39904035]
[1770440471957,0.08406609,2091.2,2090.6,1.39904035]
[1770440473051,0.08406609,2091.2,2090.7,1.19577175]
[1770440473255,0.08406609,2091.2,2090.8,1.39904035]
[1770440473574,0.08406609,2091.2,2090.9,0.25948121]
[1770440473781,0.33159957,2092.9,2091.4,1.39904035]
[1770440473981,1.19457186,2092.8,2092.3,0.24995606]
[1770440474272,0.63041581,2092.8,2092.3,0.24995606]
[1770440474870,0.68067909,2092.8,2092.3,0.24995606]
[1770440475170,1.19462894,2092.7,2092.3,0.24995606]
[1770440475840,1.82499226,2092.8,2092.3,0.24995606]
[1770440476046,0.63041581,2092.8,2092.3,0.24995606]
[1770440476268,0.33159957,2092.9,2092.3,1.44479859]
[1770440476447,0.33159957,2092.9,2092.3,2.84383894]
[1770440476664,0.05026328,2092.8,2092.3,0.09226499]
[1770440476971,1.48302466,2092.7,2091.8,1.19514291]
[1770440477179,1.48302466,2092.7,2091.3,1.19540211]
[1770440477180,1.48302466,2092.4,2091.3,1.19540211]
[1770440477350,1.48302466,2092.4,2091.3,1.45484636]
[1770440477669,0.05026328,2092.3,2091.3,1.45484636]
[1770440477869,0.05026328,2092.3,2091.3,1.45486182]
[1770440478457,1.48302466,2092.3,2091.3,1.19541757]
[1770440478954,1.48302466,2092.3,2091.3,1.19542383]
[1770440479153,1.19491444,2092.2,2091.0,1.19560019]
[1770440479355,1.19491444,2092.2,2090.9,6.18163966]
[1770440479356,1.48302466,2092.0,2090.9,1.19564227]
[1770440479554,0.05026328,2091.7,2090.8,1.19570787]
[1770440479772,0.05026328,2091.7,2090.8,0.73778029]
[1770440479973,1.48302466,2091.7,2090.8,1.19570519]
[1770440480269,1.48302466,2092.0,2090.9,1.1956236]
[1770440480469,0.05026328,2091.7,2090.7,1.19573723]
[1770440480670,0.05026328,2091.4,2090.6,1.19581258]
[1770440480873,0.05026328,2091.4,2090.5,1.19585117]
[1770440481058,1.48302466,2091.7,2090.5,1.19585117]
[1770440481059,1.48302466,2091.7,2090.6,1.1958257]
[1770440481255,1.19525721,2091.6,2090.4,1.19594336]
[1770440481578,1.19525721,2091.6,2090.5,1.39904035]
[1770440481748,2.67809416,2092.0,2090.5,1.39904035]
[1770440481954,0.05026328,2091.7,2090.5,1.39904035]
[1770440482154,1.43276138,2091.9,2090.6,1.65853872]
[1770440482464,1.24533278,2092.0,2090.6,1.65853872]
[1770440483159,2.67809416,2092.0,2090.6,1.65853872]
[1770440483476,1.43276138,2091.9,2090.7,1.19577175]
[1770440483676,0.002,2091.8,2090.7,1.19577175]
[1770440483863,0.002,2091.8,2090.9,1.39904035]
[1770440485668,0.002,2091.8,2091.0,1.19560019]
[1770440486984,0.05026328,2091.7,2090.9,1.19564791]
[1770440488379,1.2455083,2091.7,2090.9,1.19564791]
[1770440488685,0.74608997,2091.6,2090.9,1.19564791]
[1770440489183,0.74608997,2091.6,2090.5,1.19585926]
[1770440489184,1.47824329,2091.4,2090.5,1.19585926]
[1770440489375,1.47824329,2091.4,2090.6,1.19582796]
[1770440489573,1.47824329,2091.4,2090.5,1.19584962]
[1770440489885,1.47824329,2091.4,2090.3,1.39904035]
[1770440489886,1.43276138,2091.1,2090.3,1.19596031]
[1770440490388,1.43276138,2091.4,2090.3,1.79398098]
[1770440491282,1.43276138,2091.4,2090.3,3.19302133]
[1770440491582,1.24557764,2091.5,2090.4,1.39904035]
[1770440491959,1.48302466,2090.9,2090.0,0.001]
[1770440492184,1.24602945,2090.8,2090.0,0.001]
[1770440492388,1.51390853,2090.8,2090.0,0.001]
[1770440492690,1.46364525,2090.8,2090.0,0.001]
[1770440493189,1.48302466,2091.2,2090.0,1.40004035]
[1770440493190,1.43276138,2091.2,2090.0,1.40004035]
[1770440493360,1.19554301,2091.1,2090.0,1.40004035]
[1770440494378,1.19542868,2091.3,2090.1,2.59515536]
[1770440494575,0.05026328,2091.2,2090.1,2.59515536]
[1770440494890,0.05026328,2091.2,2090.2,0.73806154]
[1770440495258,0.05026328,2091.2,2090.2,2.13710189]
[1770440495457,1.19542868,2091.3,2090.2,2.13710189]
[1770440496193,1.41407649,2091.2,2090.2,0.73806154]
[1770440496384,1.19554301,2091.1,2090.3,1.19600057]
[1770440496565,6.19604491,2091.2,2090.4,0.67180644]
[1770440496566,1.24578735,2091.2,2090.4,0.67180644]
[1770440496885,1.24578735,2091.2,2090.4,0.67280644]
[1770440497187,4.78161801,2091.4,2090.4,0.67280644]
[1770440497685,0.05026328,2091.2,2090.4,0.67280644]
[1770440497984,6.14543122,2091.4,2090.4,0.67280644]
[1770440498186,0.05026328,2091.2,2090.4,0.67280644]
[1770440498488,1.93457023,2091.3,2090.4,1.86870889]
[1770440498665,0.05026328,2091.2,2090.4,1.86870889]
[1770440499384,1.93457023,2091.3,2090.4,1.86870889]
[1770440499761,0.05026328,2091.2,2090.4,1.86870889]
[1770440500062,0.62760223,2091.2,2090.4,1.86870889]
[1770440500595,1.82313706,2091.2,2090.4,1.86874766]
[1770440502763,1.19520007,2091.7,2090.5,1.45278089]
[1770440503666,0.05026328,2091.5,2090.5,1.45278089]
[1770440504770,1.19537152,2091.4,2090.6,1.19582894]
[1770440505192,1.24562098,2091.5,2090.6,1.19582894]
[1770440505489,1.19523467,2091.7,2090.8,1.45278089]
[1770440505791,1.19523467,2091.7,2090.7,2.19597345]
[1770440506575,2.55904788,2091.7,2090.7,0.74319256]
[1770440506773,2.55904788,2091.7,2090.8,1.19571455]
[1770440507685,1.19523467,2091.7,2090.8,2.64849544]
[1770440507995,1.19523467,2091.7,2090.9,0.81746518]
[1770440508574,1.24549795,2091.7,2090.9,0.81746518]
[1770440508779,2.60931116,2091.7,2090.9,0.81746518]
[1770440509078,2.60931116,2091.7,2090.9,2.01310767]
[1770440509894,2.60931116,2091.7,2090.9,2.01311704]
[1770440510076,0.78946431,2091.6,2090.9,2.01312205]
[1770440510277,0.73920103,2091.6,2090.9,2.01312205]
[1770440510476,0.002,2091.5,2090.9,2.01312205]
[1770440511296,1.19731436,2091.5,2090.9,0.81746518]
[1770440511469,1.19731436,2091.5,2090.9,1.19565339]
[1770440511470,0.002,2091.5,2090.9,1.19565339]
[1770440513893,0.002,2091.5,2090.9,2.64843428]
[1770440514078,0.002,2091.5,2091.0,1.45278089]
[1770440514296,0.002,2091.8,2091.1,0.26484343]
[1770440515296,0.002,2091.8,2091.2,1.19548584]
[1770440520375,0.002,2091.8,2091.2,2.64826673]
[1770440520700,0.002,2091.8,2091.2,1.19548584]
[1770440520903,1.36581321,2091.8,2091.1,0.26484343]
[1770440521194,1.36581321,2091.8,2091.1,1.46038449]
[1770440521416,1.36581321,2091.8,2091.2,2.07705439]
[1770440521417,0.002,2091.8,2091.2,2.07705439]
[1770440521699,0.002,2091.8,2091.3,1.19542868]
[1770440522394,0.002,2091.8,2090.6,1.45278089]
[1770440522395,1.41407649,2091.7,2090.6,1.45278089]
[1770440522596,1.41407649,2091.6,2090.8,1.19570166]
[1770440522803,0.002,2091.8,2091.2,1.19547083]
[1770440523297,0.002,2091.8,2091.2,2.64825172]
[1770440523498,0.002,2091.8,2091.3,1.45278089]
[1770440523700,0.002,2091.8,2091.4,1.19537152]
[1770440524087,0.002,2091.8,2091.4,2.64815241]
[1770440524288,0.002,2091.8,2091.5,0.74296385]
[1770440524489,6.14291837,2092.5,2091.6,1.45278089]
[1770440524490,1.1947455,2092.5,2091.6,1.45278089]
[1770440524805,1.24500878,2092.5,2091.6,1.45278089]
[1770440525299,1.1966667,2092.7,2091.6,1.45278089]
[1770440525506,0.05026328,2092.6,2091.6,1.45278089]
[1770440525677,0.68509542,2092.6,2091.6,1.45278089]
[1770440526009,1.82955841,2092.6,2091.7,2.54349142]
[1770440526193,0.002,2092.7,2091.8,1.34829135]
[1770440526698,0.002,2092.7,2091.7,1.19520007]
[1770440526904,0.002,2092.7,2091.8,1.34829135]
[1770440527479,1.47166496,2092.6,2091.7,1.19520007]
[1770440527683,1.68823307,2092.5,2091.7,1.19520007]
[1770440527908,2.8829944,2092.5,2091.6,4.7808003]
[1770440528607,2.8829944,2092.5,2090.5,9.00464059]
[1770440528608,1.36149823,2091.9,2091.1,1.19653952]
[1770440528925,1.36149823,2091.9,2091.1,0.001]
[1770440529104,1.36149823,2091.9,2091.1,1.19653189]
[1770440529290,1.36149823,2091.9,2091.2,1.19548242]
[1770440529491,1.41176151,2091.7,2091.1,0.001]
[1770440530501,1.41176151,2091.7,2090.9,0.001]
[1770440530502,1.41176151,2091.4,2090.9,0.001]
[1770440530705,1.24552049,2091.6,2090.9,0.001]
[1770440530903,0.73880476,2091.5,2090.9,0.001]
[1770440531080,0.58880476,2091.5,2090.9,0.001]
[1770440531279,0.05026328,2091.3,2090.9,0.001]
[1770440532598,1.19548584,2091.2,2090.9,0.001]
[1770440532786,2.55696705,2091.3,2090.9,0.001]
[1770440532983,1.98820208,2091.3,2090.9,0.001]
[1770440533694,2.03846536,2091.3,2090.9,0.001]
[1770440534931,1.36149823,2091.9,2090.9,0.001]
[1770440535105,2.5566215,2091.9,2090.9,0.001]
[1770440535889,0.05026328,2091.7,2090.9,0.001]
[1770440536089,1.41176151,2091.7,2090.9,0.001]
[1770440537016,1.19525721,2091.6,2091.1,0.001]
[1770440537202,0.73879225,2091.5,2091.1,0.001]
[1770440538194,4.78039243,2091.9,2091.1,0.001]
[1770440542205,0.05026328,2091.7,2091.1,0.001]
[1770440542397,4.78039243,2091.9,2091.1,0.001]
[1770440543101,1.36149823,2091.6,2091.1,0.001]
[1770440543299,0.05026328,2091.4,2090.9,0.001]
[1770440543516,1.36149823,2091.6,2090.9,0.001]
[1770440543696,4.78039243,2091.9,2090.9,0.001]
[1770440543898,0.60257415,2091.8,2090.9,0.59897933]
[1770440544200,1.36149823,2091.6,2090.9,0.59897933]
[1770440544405,1.19520007,2091.7,2090.9,1.79462308]
[1770440544587,2.60696158,2091.7,2090.9,0.001]
[1770440544791,0.05026328,2091.4,2090.9,0.001]
[1770440544988,1.36149823,2091.6,2090.9,0.001]
[1770440545897,1.24546335,2091.7,2090.9,0.001]
[1770440546196,1.7977506,2091.8,2090.9,0.001]
[1770440546390,1.19517645,2091.8,2090.9,1.94686198]
[1770440547413,4.779928,2092.1,2091.0,1.35888723]
[1770440547726,1.41176151,2092.0,2091.0,1.33404942]
[1770440547886,4.77975756,2092.2,2091.0,1.33404942]
[1770440548089,0.05026328,2092.0,2091.0,1.33404942]
[1770440548486,4.77975756,2092.2,2091.2,1.33404942]
[1770440548698,1.41176151,2092.0,2091.3,0.25544279]
[1770440548902,1.41176151,2092.0,2091.1,1.19554301]
[1770440549491,1.19491444,2092.2,2091.2,1.33404942]
[1770440549691,1.41176151,2092.2,2091.2,0.001]
[1770440550105,0.002,2091.8,2091.2,0.001]
[1770440550306,0.002,2091.8,2091.2,0.59887151]
[1770440550710,0.002,2091.8,2091.3,1.19542868]
[1770440551318,0.002,2091.8,2091.2,0.59887151]
[1770440551521,0.002,2091.8,2091.2,0.001]
[1770440553005,0.002,2091.8,2091.2,1.33504942]
[1770440554900,0.002,2091.8,2091.4,1.33404942]
[1770440556196,0.002,2091.8,2091.2,1.19645684]
[1770440558138,0.002,2091.8,2091.3,1.380435]
[1770440558431,0.002,2091.8,2091.2,1.19645684]
[1770440558432,0.002,2091.8,2091.4,0.25768918]
[1770440558730,0.002,2091.8,2091.3,1.380435]
[1770440559135,0.002,2091.8,2091.4,2.57580652]
[1770440560042,0.002,2091.8,2091.4,1.19537152]
[1770440560211,0.002,2091.8,2091.4,2.57580652]
[1770440560911,0.002,2091.8,2091.2,0.001]
[1770440560912,0.002,2091.8,2091.2,1.19648496]
[1770440561303,0.002,2091.8,2091.2,0.59897555]
[1770440561606,0.002,2091.8,2091.2,0.001]
[1770440562427,0.002,2091.8,2091.2,1.381435]
[1770440563008,0.002,2091.8,2091.3,1.381435]
[1770440563211,0.002,2091.6,2091.3,1.381435]
[1770440563427,0.002,2091.6,2091.4,1.19537152]
[1770440563708,0.002,2091.8,2091.5,0.73584443]
[1770440565526,0.002,2091.8,2091.6,1.19525721]
[1770440566315,0.002,2091.8,2091.5,3.3115538]
[1770440566709,0.002,2091.8,2091.5,1.9311188]
[1770440567558,4.7779314,2093.0,2091.8,1.380435]
[1770440567709,4.82818701,2093.0,2091.8,1.380435]
[1770440567914,1.51750875,2092.8,2091.8,1.380435]
[1770440568336,0.32293067,2092.8,2091.8,1.380435]
[1770440568645,1.51750864,2092.8,2091.8,1.380435]
[1770440569012,1.51750763,2092.8,2091.8,1.380435]
[1770440569224,0.05026328,2092.7,2091.8,1.380435]
[1770440569543,1.19468603,2092.6,2091.9,1.1950858]
[1770440571930,1.51753698,2092.8,2091.9,1.1950858]
[1770440572130,0.32293067,2092.8,2092.0,1.380435]
[1770440572332,0.32293067,2092.8,2092.1,1.63798708]
[1770440573725,0.32293067,2092.8,2092.2,1.19491444]
[1770440573934,0.05026328,2092.7,2092.1,0.25755208]
[1770440574152,0.05026328,2092.7,2092.1,1.45251905]
[1770440574443,1.51751147,2092.8,2092.1,1.45251905]
[1770440574648,1.51751147,2092.8,2092.2,0.62326321]
[1770440575342,0.32293067,2092.8,2092.2,0.62326321]
[1770440575740,0.32293067,2092.8,2092.2,1.818121]
[1770440576144,0.002,2092.5,2092.2,1.818121]
[1770440576329,0.002,2092.5,2092.2,3.198556]
[1770440576524,0.002,2092.5,2092.3,0.82358824]
[1770440576942,0.32293067,2092.8,2092.3,2.20402324]
[1770440577965,0.32293067,2092.8,2092.4,1.19480022]
[1770440578122,0.32293067,2092.8,2092.4,2.57523522]
[1770440578321,0.32293067,2092.8,2092.5,1.380435]
[1770440578639,0.32293067,2092.8,2092.6,0.25752352]
[1770440578964,0.32293067,2092.8,2092.4,1.19480022]
[1770440579644,0.32293067,2092.8,2092.4,2.57523522]
[1770440579846,0.32293067,2092.8,2092.5,1.380435]
[1770440580048,0.1299798,2093.1,2092.6,1.19468603]
[1770440580433,0.1299798,2093.1,2092.7,1.380435]
[1770440580630,0.1299798,2093.1,2092.8,0.2575121]
[1770440580861,1.39012333,2093.0,2091.8,1.381435]
[1770440581072,0.1299798,2093.1,2092.2,1.380435]
[1770440581354,0.1299798,2093.1,2092.5,1.1947361]
[1770440581522,1.32439831,2093.1,2092.2,1.380435]
[1770440581725,0.1299798,2093.1,2092.5,1.19472382]
[1770440581925,0.04366095,2093.1,2092.8,1.19457186]
[1770440582223,2.63438794,2093.8,2092.8,1.19457186]
[1770440582423,2.63438794,2093.8,2092.8,2.57500686]
[1770440582950,1.24426461,2093.8,2092.8,1.19457186]
[1770440583169,1.19400133,2093.8,2092.8,2.57500686]
[1770440583326,1.19379838,2094.2,2093.0,1.380435]
[1770440584026,1.19379838,2094.2,2093.2,1.380435]
[1770440584228,1.51608782,2094.3,2093.2,1.380435]
[1770440585156,1.51608843,2094.3,2093.2,1.380435]
[1770440585365,1.51609377,2094.3,2093.2,1.380435]
[1770440585536,1.51609377,2094.3,2093.4,1.380435]
[1770440585972,0.32236982,2094.3,2093.6,1.34264675]
[1770440586152,0.32236982,2094.3,2093.5,2.53681918]
[1770440586494,0.32236982,2094.3,2093.6,1.34264675]
[1770440587049,1.19335782,2095.0,2093.7,1.34264675]
[1770440587247,1.79000465,2095.0,2093.7,1.34264675]
[1770440587569,1.79000465,2095.0,2093.5,1.19417243]
[1770440587570,1.35431355,2094.7,2093.5,2.53681918]
[1770440588171,0.002,2094.1,2093.6,1.34264675]
[1770440588996,0.002,2094.1,2093.4,2.55504844]
[1770440589132,0.59664683,2095.0,2093.6,1.36081896]
[1770440589334,1.19326046,2095.1,2093.8,1.36081896]
[1770440589672,1.2949648,2095.0,2093.8,1.36081896]
[1770440589857,1.24352374,2095.1,2093.8,1.36081896]
[1770440589858,1.19326046,2095.1,2093.8,1.36081896]
[1770440590172,6.06793798,2095.2,2093.9,2.55476327]
[1770440590466,1.34522808,2095.0,2093.9,1.19394431]
[1770440590766,1.34522808,2094.9,2093.5,4.77666994]
[1770440591064,1.34522808,2094.6,2093.6,1.19408225]
[1770440591263,1.2949648,2094.6,2093.4,6.13771681]
[1770440591462,1.2949648,2094.6,2093.7,1.19403929]
[1770440591767,1.2949648,2094.6,2093.7,1.19404983]
[1770440591966,1.2949648,2094.6,2093.8,1.1939982]
[1770440592567,1.19360229,2094.5,2093.5,1.19417243]
[1770440592772,0.72627938,2094.4,2093.5,1.19417243]
[1770440593281,0.72627938,2094.4,2093.5,2.55499139]
[1770440593954,0.72627938,2094.4,2093.5,1.19417243]
[1770440594686,1.19371627,2094.3,2093.4,4.77690175]
[1770440595080,1.91998285,2094.4,2093.4,4.77690175]
[1770440595255,0.66945314,2094.3,2093.5,0.98110751]
[1770440596281,0.66945314,2094.3,2093.5,2.34192647]
[1770440596653,0.66945314,2094.3,2093.6,1.19411539]
[1770440596970,1.19363833,2094.5,2093.6,2.55493435]
[1770440597889,1.19363833,2094.5,2093.6,1.19411539]
[1770440598884,4.77435125,2094.6,2093.6,1.19411539]
[1770440599085,1.1935453,2094.6,2093.6,2.55493435]
[1770440599790,1.1935453,2094.6,2093.7,1.36081896]
[1770440600083,0.59675766,2094.5,2093.7,2.19206931]
[1770440600981,0.59675766,2094.5,2093.9,1.19394431]
[1770440601296,2.48838197,2094.9,2093.9,2.55476327]
[1770440602198,1.2949648,2094.8,2093.8,1.19395821]
[1770440602892,1.2949648,2094.6,2093.7,1.19401684]
[1770440603062,1.19360229,2094.5,2093.6,4.77643211]
[1770440603262,0.72629485,2094.4,2093.6,5.94938916]
[1770440603496,1.2949648,2094.0,2093.4,0.001]
[1770440603793,1.34522808,2093.9,2093.4,0.001]
[1770440603991,1.2949648,2094.0,2093.4,0.001]
[1770440604295,1.2949648,2093.8,2093.4,0.001]
[1770440604999,2.48913723,2093.5,2092.3,1.36081896]
[1770440605198,1.34522808,2093.3,2092.3,1.19485216]
[1770440606002,1.34522808,2093.3,2092.3,1.21658489]
[1770440606991,1.19434358,2093.2,2092.3,1.19485404]
[1770440607191,2.48930838,2093.2,2092.3,1.19485404]
[1770440607590,1.19434358,2093.2,2092.4,0.02172961]
[1770440607901,1.19434358,2093.2,2092.4,0.62133091]
[1770440607902,0.6703327,2093.2,2092.4,0.62133091]
[1770440608287,5.50858076,2093.4,2092.5,1.36081896]
[1770440608288,0.73160903,2093.4,2092.5,1.36081896]
[1770440608487,2.48902316,2093.7,2092.6,1.38254649]
[1770440608687,1.2949648,2093.6,2092.5,0.02172753]
[1770440609299,4.77623346,2093.9,2092.5,0.02172753]
[1770440609300,2.48890911,2093.9,2092.6,2.55550499]
[1770440609495,1.34522808,2093.7,2092.7,0.73559767]
[1770440610000,1.34522808,2093.7,2092.5,1.19473201]
[1770440611410,2.48908019,2093.6,2092.5,1.19473201]
[1770440611981,0.73149092,2093.8,2092.7,1.36081896]
[1770440612179,2.48876862,2094.2,2092.9,1.36081896]
[1770440612385,1.19380382,2094.2,2093.1,1.36081896]
[1770440613371,1.19380382,2094.2,2093.2,1.19434358]
[1770440613779,1.1935453,2094.6,2093.3,1.36081896]
[1770440613988,1.1935453,2094.6,2093.4,1.63805339]
[1770440613989,0.26411734,2094.5,2093.4,1.63805339]
[1770440614306,0.05026328,2095.1,2093.4,1.63805339]
[1770440614307,1.2949648,2094.9,2093.4,1.63805339]
[1770440614478,6.11878773,2094.9,2093.4,1.63805339]
[1770440614809,0.002,2094.5,2093.4,1.63805339]
[1770440615610,0.002,2094.5,2093.6,1.36081896]
[1770440616806,0.002,2094.5,2093.8,1.38849739]
[1770440617114,4.77221566,2095.5,2094.0,1.38849739]
[1770440617481,4.77221566,2095.5,2094.2,1.38849739]
[1770440618082,0.05026328,2095.4,2094.2,1.38849739]
[1770440618883,1.37771549,2095.4,2094.2,1.38849739]
[1770440619192,1.32745221,2095.4,2094.2,1.38849739]
[1770440619382,1.32745221,2095.4,2094.3,0.25823277]
[1770440619383,0.60996679,2095.3,2094.3,0.25823277]
[1770440619585,1.80312836,2095.3,2094.4,1.19365928]
[1770440619882,1.19316157,2095.3,2094.4,2.58215667]
[1770440620085,1.19316157,2095.3,2094.3,1.45191051]
[1770440620578,1.19316157,2095.3,2094.3,1.19367774]
[1770440620806,2.52061378,2095.3,2094.3,1.19367774]
[1770440621192,0.05026328,2095.1,2094.1,6.16377122]
[1770440621387,0.05026328,2095.1,2094.1,2.58229529]
[1770440621608,0.05026328,2095.1,2093.9,4.7755548]
[1770440621609,2.52076963,2095.0,2093.9,1.19394431]
[1770440622512,1.32745221,2094.9,2093.9,1.19394431]
[1770440623012,1.32745221,2094.7,2093.6,1.19407276]
[1770440623180,1.32745221,2094.7,2093.6,1.19411488]
[1770440623712,2.52099751,2094.6,2093.5,1.19417243]
[1770440623882,1.32745221,2094.4,2093.5,0.62264639]
[1770440624083,0.05026328,2093.9,2092.9,2.58297406]
[1770440624306,1.37771549,2093.9,2093.0,1.19445664]
[1770440624505,1.37771549,2093.9,2093.0,1.19445614]
[1770440624711,1.32745221,2094.3,2093.2,1.19433101]
[1770440624887,0.72951787,2094.5,2093.4,1.19420268]
[1770440625083,0.72951787,2094.5,2093.3,4.77700717]
[1770440625084,1.65250375,2094.4,2093.5,0.59712099]
[1770440625284,1.65250375,2094.4,2093.3,1.1942802]
[1770440625679,1.19371627,2094.3,2093.2,1.19431184]
[1770440626510,1.19371627,2094.3,2093.2,2.58280923]
[1770440627008,1.51875424,2094.4,2093.4,1.38849739]
[1770440627215,0.6008784,2094.3,2093.5,0.35338654]
[1770440627394,0.6008784,2094.3,2093.4,1.38849739]
[1770440627590,1.32745221,2094.8,2093.5,2.58266982]
[1770440627809,0.05026328,2095.4,2093.6,1.38849739]
[1770440627810,0.002,2094.3,2093.6,1.38849739]
[1770440629703,0.002,2094.3,2093.8,1.38849739]
[1770440631121,0.002,2094.3,2093.6,1.19410427]
[1770440631816,0.05026328,2094.2,2093.4,0.001]
[1770440632005,1.32945221,2094.3,2093.4,0.001]
[1770440632717,0.002,2094.3,2093.4,0.001]
[1770440633340,0.002,2094.3,2093.4,1.38949739]
[1770440633794,0.002,2094.3,2093.5,1.19417243]
[1770440634118,0.002,2094.3,2093.6,2.12453335]
[1770440635298,0.002,2094.3,2093.6,0.73603596]
[1770440635902,0.002,2094.3,2093.6,1.9301348]
[1770440641631,0.002,2094.3,2093.6,3.31863219]
[1770440642125,0.95069907,2094.8,2093.7,1.38849739]
[1770440642426,0.95069907,2094.8,2093.8,1.72036061]
[1770440643122,0.95069907,2094.8,2093.9,1.19394431]
[1770440644234,1.32745221,2094.7,2093.8,1.52582507]
[1770440645528,1.1935453,2094.6,2093.8,1.52582507]
[1770440645734,1.92807746,2094.6,2093.9,0.6301981]
[1770440647208,1.19353193,2094.7,2093.9,0.6301981]
[1770440647609,2.57553234,2094.9,2094.0,1.19388729]
[1770440648837,1.27514026,2094.3,2093.5,1.19513056]
[1770440649011,1.27514026,2094.3,2093.6,1.19410837]
[1770440649206,1.27514026,2094.3,2093.5,1.19512388]
[1770440649419,1.27514026,2094.3,2093.6,5.37363121]
[1770440649622,1.27514026,2094.3,2093.7,1.19400282]
[1770440649818,1.19374267,2094.3,2093.6,1.79136824]
[1770440650934,1.19374267,2094.3,2093.6,0.59729168]
[1770440651136,1.27514026,2094.2,2093.5,0.001]
[1770440651630,1.19383028,2094.1,2093.5,0.001]
[1770440653713,1.35092659,2093.8,2093.1,0.001]
[1770440653914,1.35092659,2093.8,2093.1,1.19538347]
[1770440654114,2.59502015,2094.1,2093.2,0.59731839]
[1770440654416,1.35092659,2094.0,2093.1,0.001]
[1770440654822,1.35092659,2094.0,2093.1,1.19538719]
[1770440655646,1.19394431,2093.9,2093.5,0.001]
[1770440657713,4.77531937,2094.2,2093.5,0.001]
[1770440657909,6.17650924,2094.2,2093.5,0.001]
[1770440658114,6.12624596,2094.2,2093.5,0.001]
[1770440658347,1.19365928,2094.4,2093.5,0.001]
[1770440658834,1.19138118,2094.4,2093.5,0.001]
[1770440659721,1.19138118,2094.4,2093.5,1.19517243]
[1770440660042,0.05226328,2094.6,2093.5,1.19517243]
[1770440660043,0.002,2094.6,2093.6,1.30517637]
[1770440660348,1.19555665,2094.6,2093.7,1.55521125]
[1770440660725,0.002,2094.6,2093.7,1.55521125]
[1770440660927,1.35092659,2094.5,2093.7,0.25003488]
[1770440661226,1.19557155,2094.6,2093.5,1.30617637]
[1770440661428,2.54649814,2094.6,2093.5,1.30617637]
[1770440661654,2.54464286,2094.3,2093.5,0.001]
[1770440661831,1.35092659,2094.1,2093.5,0.001]
[1770440662223,0.05026328,2094.0,2093.1,0.001]
[1770440662959,1.40118987,2094.0,2093.1,0.5983491]
[1770440663255,1.40118987,2094.0,2093.1,0.001]
[1770440663748,2.5448709,2093.9,2093.1,0.001]
[1770440664354,0.05026328,2093.7,2093.1,0.001]
[1770440665026,0.05026328,2093.7,2092.7,0.001]
[1770440665027,1.40118987,2093.3,2092.7,0.001]
[1770440665925,1.19434358,2093.2,2092.7,0.001]
[1770440666127,0.73729078,2093.1,2092.7,0.001]
[1770440666938,1.40118987,2092.9,2092.0,0.001]
[1770440667135,1.40118987,2092.9,2092.0,1.19602049]
[1770440667451,0.73729078,2093.1,2092.1,1.19495761]
[1770440667655,0.3282561,2093.0,2092.1,1.92308018]
[1770440667822,1.19451478,2092.9,2092.1,1.92308018]
[1770440668745,0.73729078,2093.1,2092.2,1.30517637]
[1770440669063,1.19411539,2093.6,2092.2,1.30517637]
[1770440669247,1.19411539,2093.6,2093.0,0.001]
[1770440669853,4.77628126,2093.7,2093.0,0.001]
[1770440670158,4.82654454,2093.7,2093.0,0.001]
[1770440670329,1.09539327,2093.6,2093.0,0.001]
[1770440672255,1.19417243,2093.5,2093.0,0.001]
[1770440672467,1.19417243,2093.5,2092.3,4.77936156]
[1770440672468,1.40118987,2093.4,2092.3,1.19482357]
[1770440672648,1.40118987,2093.4,2092.2,1.19587326]
[1770440672955,0.05026328,2093.1,2092.3,0.67038004]
[1770440673255,0.25953623,2093.3,2092.3,1.1948111]
[1770440673435,0.25953623,2093.3,2092.2,1.19589678]
[1770440673636,0.25953623,2093.3,2092.3,1.19484744]
[1770440673836,0.25953623,2093.3,2092.3,1.19485697]
[1770440674051,0.25953623,2093.3,2092.2,1.1958721]
[1770440674354,1.19434358,2093.2,2092.3,1.79242524]
[1770440674530,1.19434358,2093.2,2092.3,0.59757411]
[1770440674960,1.19434358,2093.2,2092.3,1.79242282]
[1770440675162,1.19434358,2093.2,2092.3,0.59757411]
[1770440675764,2.55395557,2093.2,2092.2,1.19587747]
[1770440676130,2.55395557,2093.2,2092.2,0.001]
[1770440676328,2.55395557,2093.2,2092.2,1.30739563]
[1770440676329,1.19434358,2093.2,2092.2,1.30739563]
[1770440680733,4.77737435,2093.3,2092.2,1.30739563]
[1770440680939,4.77737435,2093.3,2092.3,1.30639563]
[1770440681141,1.35961199,2093.2,2092.4,0.25022685]
[1770440681463,1.40987527,2093.1,2092.2,0.001]
[1770440681648,1.40987527,2093.1,2092.4,0.001]
[1770440682939,1.19445771,2093.0,2092.4,0.001]
[1770440683346,2.5540697,2093.0,2092.4,0.001]